fUST/lending_fUST_20240525
["ID","MTS","AMOUNT","RATE_DAILY","PERIOD"]
[327878423,1716574252986,-500.0,0.00027945,14]
[327878424,1716574252997,-613.44,0.00027945,14]
[327878425,1716574253006,-4510.73,0.00027945,14]
[327878426,1716574253017,-1401.54,0.00027945,14]
[327878427,1716574253027,-500.0,0.00027945,14]
[327878428,1716574253036,-221.76141425,0.00028,2]
[327878429,1716574253046,-154.82968734,0.00028,2]
[327878430,1716574253056,-11340.14920617,0.00028,4]
[327878431,1716574253066,-168.78981311,0.00028035,2]
[327878432,1716574253076,-2058.03552149,0.00028128,2]
[327878433,1716574253086,-151.0,0.00028128,2]
[327878434,1716574253096,-151.0,0.00028128,2]
[327878435,1716574253105,-168.78981311,0.00028144,2]
[327878436,1716574253115,-150.0,0.0002818,14]
[327878437,1716574253125,-1824.81,0.00028219,2]
[327878438,1716574253134,-613.54036886,0.00028219,15]
[327878439,1716574253143,-195.854365,0.00028219,2]
[327878440,1716574253153,-195.854365,0.00028219,2]
[327878441,1716574253162,-151.0,0.00028219,2]
[327878442,1716574253172,-151.0,0.00028219,2]
[327878443,1716574253181,-151.0,0.00028219,2]
[327878444,1716574253191,-500.0,0.00028219,15]
[327878445,1716574253200,-418.033386,0.00028219,2]
[327878446,1716574253210,-418.033386,0.00028219,2]
[327878447,1716574253220,-500.0,0.00028219,15]
[327878448,1716574253229,-691.71,0.00028219,15]
[327878449,1716574253239,-500.0,0.00028219,15]
[327878450,1716574253248,-587.64,0.00028219,15]
[327878451,1716574253259,-500.0,0.00028219,15]
[327878452,1716574253269,-500.0,0.00028219,15]
[327878453,1716574253279,-634.77,0.00028219,15]
[327878454,1716574253288,-500.0,0.00028219,15]
[327878455,1716574253297,-661.81,0.00028219,15]
[327878456,1716574253306,-500.0,0.00028219,15]
[327878457,1716574253316,-500.0,0.00028219,15]
[327878458,1716574253325,-2846.28,0.00028219,15]
[327878459,1716574253335,-3577.07,0.00028219,15]
[327878460,1716574253344,-808.03,0.00028219,15]
[327878461,1716574253354,-500.0,0.00028219,15]
[327878462,1716574253363,-506.88,0.00028219,15]
[327878463,1716574253373,-1250.13,0.00028219,15]
[327878464,1716574253382,-500.0,0.00028219,15]
[327878465,1716574253391,-553.03,0.00028219,15]
[327878466,1716574253400,-1250.38,0.00028219,15]
[327878467,1716574253409,-504.09,0.00028219,15]
[327878468,1716574253418,-500.0,0.00028219,15]
[327878469,1716574253428,-626.0,0.00028219,15]
[327878470,1716574253437,-500.0,0.00028219,15]
[327878471,1716574253446,-839.12,0.00028219,15]
[327878472,1716574253456,-4212.77,0.00028219,15]
[327878473,1716574253465,-500.0,0.00028219,15]
[327878474,1716574253475,-500.0,0.00028219,15]
[327878475,1716574253484,-613.44,0.00028219,15]
[327878476,1716574253494,-4510.73,0.00028219,15]
[327878477,1716574253503,-1401.54,0.00028219,15]
[327878478,1716574253514,-500.0,0.00028219,15]
[327878479,1716574253525,-158.65629788,0.00028222,2]
[327878480,1716574253535,-151.0,0.00028287,2]
[327878481,1716574253544,-154.951723,0.00028287,2]
[327878482,1716574253554,-306.0,0.00028287,2]
[327878483,1716574253564,-306.0,0.00028287,2]
[327878484,1716574253574,-153.0,0.00028287,2]
[327878485,1716574253584,-306.0,0.00028287,2]
[327878486,1716574253594,-153.0,0.00028287,2]
[327878487,1716574253604,-153.0,0.00028287,2]
[327878488,1716574253614,-153.0,0.00028287,2]
[327878489,1716574253740,-153.0,0.00028287,2]
[327878490,1716574253750,-153.0,0.00028287,2]
[327878491,1716574253762,-153.0,0.00028287,2]
[327878492,1716574253772,-306.0,0.00028287,2]
[327878493,1716574253782,-153.0,0.00028287,2]
[327878494,1716574253792,-153.0,0.00028287,2]
[327878495,1716574253803,-153.0,0.00028287,2]
[327878496,1716574253816,-306.0,0.00028287,2]
[327878497,1716574253826,-329.903949,0.00028287,2]
[327878498,1716574253836,-153.0,0.00028287,2]
[327878499,1716574253847,-153.0,0.00028287,2]
[327878500,1716574253857,-153.0,0.00028287,2]
[327878501,1716574253866,-153.0,0.00028287,2]
[327878502,1716574253876,-153.0,0.00028287,2]
[327878503,1716574253885,-150.83408251,0.00028308,2]
[327878504,1716574253896,-250.21564279,0.00028308,2]
[327878505,1716574253907,-168.78981311,0.0002837,2]
[327878506,1716574253916,-300.0,0.000284,2]
[327878507,1716574253927,-158.65629788,0.00028402,2]
[327878508,1716574253937,-2058.03552149,0.00028423,2]
[327878509,1716574253948,-2058.03552149,0.00028454,2]
[327878510,1716574253957,-155.08767079,0.00028493,2]
[327878511,1716574253968,-642.52182625,0.00028493,14]
[327878512,1716574253978,-1824.81,0.00028493,2]
[327878513,1716574253990,-500.0,0.00028493,16]
[327878514,1716574254000,-500.0,0.00028493,16]
[327878515,1716574254011,-691.71,0.00028493,16]
[327878516,1716574254020,-500.0,0.00028493,16]
[327878517,1716574254030,-587.64,0.00028493,16]
[327878518,1716574254040,-500.0,0.00028493,16]
[327878519,1716574254049,-500.0,0.00028493,16]
[327878520,1716574254059,-634.77,0.00028493,16]
[327878521,1716574254069,-500.0,0.00028493,16]
[327878522,1716574254079,-661.81,0.00028493,16]
[327878523,1716574254088,-500.0,0.00028493,16]
[327878524,1716574254097,-500.0,0.00028493,16]
[327878525,1716574254108,-151.0,0.00028493,2]
[327878526,1716574254118,-2846.28,0.00028493,16]
[327878527,1716574254128,-151.0,0.00028493,2]
[327878528,1716574254138,-151.0,0.00028493,2]
[327878529,1716574254148,-3577.07,0.00028493,16]
[327878530,1716574254157,-808.03,0.00028493,16]
[327878531,1716574254167,-166.964246,0.00028493,2]
[327878532,1716574254177,-581.375839,0.00028493,2]
[327878533,1716574254186,-581.375839,0.00028493,2]
[327878534,1716574254195,-500.0,0.00028493,16]
[327878535,1716574254205,-151.0,0.00028493,2]
[327878536,1716574254214,-151.0,0.00028493,2]
[327878537,1716574254224,-506.88,0.00028493,16]
[327878538,1716574254234,-151.0,0.00028493,2]
[327878539,1716574254244,-1250.13,0.00028493,16]
[327878540,1716574254254,-216.18427194,0.00028493,16]
[327878541,1716574254266,-151.0,0.00028493,2]
[327878542,1716574254276,-152.860848,0.00028493,2]
[327878543,1716574254285,-553.03,0.00028493,16]
[327878544,1716574254295,-338.343219,0.00028493,2]
[327878545,1716574254304,-1250.38,0.00028493,16]
[327878546,1716574254314,-338.343219,0.00028493,2]
[327878547,1716574254323,-504.09,0.00028493,16]
[327878548,1716574254333,-500.0,0.00028493,16]
[327878549,1716574254343,-626.0,0.00028493,16]
[327878550,1716574254352,-500.0,0.00028493,16]
[327878551,1716574254362,-839.12,0.00028493,16]
[327878552,1716574254371,-198.757831,0.00028493,2]
[327878553,1716574254380,-4212.77,0.00028493,16]
[327878554,1716574254390,-198.757831,0.00028493,2]
[327878555,1716574254399,-500.0,0.00028493,16]
[327878556,1716574254409,-500.0,0.00028493,16]
[327878557,1716574254419,-613.44,0.00028493,16]
[327878558,1716574254428,-4510.73,0.00028493,16]
[327878559,1716574254438,-1401.54,0.00028493,16]
[327878560,1716574254447,-500.0,0.00028493,16]
[327878561,1716574254457,-165.09678267,0.00028545,2]
[327878562,1716574254466,-600.0,0.00028685,2]
[327878563,1716574254477,-2058.03552149,0.00028756,2]
[327878564,1716574254486,-1824.81,0.00028767,2]
[327878565,1716574254496,-500.0,0.00028767,17]
[327878566,1716574254505,-500.0,0.00028767,17]
[327878567,1716574254517,-691.71,0.00028767,17]
[327878568,1716574254527,-500.0,0.00028767,17]
[327878569,1716574254537,-587.64,0.00028767,17]
[327878570,1716574254546,-500.0,0.00028767,17]
[327878571,1716574254556,-500.0,0.00028767,17]
[327878572,1716574254565,-634.77,0.00028767,17]
[327878573,1716574254575,-151.0,0.00028767,2]
[327878574,1716574254584,-151.0,0.00028767,2]
[327878575,1716574254594,-151.0,0.00028767,2]
[327878576,1716574254603,-151.0,0.00028767,2]
[327878577,1716574254613,-151.0,0.00028767,2]
[327878578,1716574254622,-750.793495,0.00028767,2]
[327878579,1716574254632,-750.793495,0.00028767,2]
[327878580,1716574254641,-500.0,0.00028767,17]
[327878581,1716574254651,-661.81,0.00028767,17]
[327878582,1716574254662,-383.535937,0.00028767,2]
[327878583,1716574254671,-383.535937,0.00028767,2]
[327878584,1716574254681,-500.0,0.00028767,17]
[327878585,1716574254691,-151.0,0.00028767,2]
[327878586,1716574254700,-151.0,0.00028767,2]
[327878587,1716574254709,-151.0,0.00028767,2]
[327878588,1716574254719,-500.0,0.00028767,17]
[327878589,1716574254729,-151.0,0.00028767,2]
[327878590,1716574254738,-151.0,0.00028767,2]
[327878591,1716574254749,-2846.28,0.00028767,17]
[327878592,1716574254759,-3577.07,0.00028767,17]
[327878593,1716574254769,-808.03,0.00028767,17]
[327878594,1716574254778,-280.782576,0.00028767,2]
[327878595,1716574254788,-280.782576,0.00028767,2]
[327878596,1716574254797,-500.0,0.00028767,17]
[327878597,1716574254812,-506.88,0.00028767,17]
[327878598,1716574254822,-1250.13,0.00028767,17]
[327878599,1716574254832,-553.03,0.00028767,17]
[327878600,1716574254841,-1250.38,0.00028767,17]
[327878601,1716574254852,-504.09,0.00028767,17]
[327878602,1716574254861,-500.0,0.00028767,17]
[327878603,1716574254871,-626.0,0.00028767,17]
[327878604,1716574254880,-500.0,0.00028767,17]
[327878605,1716574254892,-839.12,0.00028767,17]
[327878606,1716574254902,-4212.77,0.00028767,17]
[327878607,1716574254912,-500.0,0.00028767,17]
[327878608,1716574254922,-151.0,0.00028767,2]
[327878609,1716574254933,-500.0,0.00028767,17]
[327878610,1716574254943,-613.44,0.00028767,17]
[327878611,1716574254953,-151.0,0.00028767,2]
[327878612,1716574254962,-4510.73,0.00028767,17]
[327878613,1716574254971,-1401.54,0.00028767,17]
[327878614,1716574254982,-704.939248,0.00028767,2]
[327878615,1716574254991,-704.939248,0.00028767,2]
[327878616,1716574255000,-500.0,0.00028767,17]
[327878617,1716574255010,-315.0,0.00028767,2]
[327878618,1716574255019,-161.71979478,0.00028769,10]
[327878619,1716574255028,-116391.53481616,0.0002877,2]
[327878620,1716574255038,-2843.09208633,0.0002877,2]
[327878621,1716574255047,-151.0,0.0002877,2]
[327878622,1716574255056,-151.0,0.0002877,2]
[327878623,1716574255066,-151.0,0.0002877,2]
[327878624,1716574255075,-159.298408,0.0002877,2]
[327878625,1716574255084,-195.854365,0.0002877,2]
[327878626,1716574255093,-1115.353612,0.0002877,2]
[327878627,1716574255103,-195.854365,0.0002877,2]
[327878628,1716574255113,-1115.353612,0.0002877,2]
[327878629,1716574255122,-255.239361,0.0002877,2]
[327878630,1716574255132,-151.0,0.0002877,2]
[327878631,1716574255141,-151.0,0.0002877,2]
[327878632,1716574255150,-418.033386,0.0002877,2]
[327878633,1716574255160,-418.033386,0.0002877,2]
[327878634,1716574255169,-151.0,0.0002877,2]
[327878635,1716574255179,-338.343219,0.0002877,2]
[327878636,1716574255188,-338.343219,0.0002877,2]
[327878637,1716574255198,-198.757831,0.0002877,2]
[327878638,1716574255207,-198.757831,0.0002877,2]
[327878639,1716574255217,-151.0,0.0002877,2]
[327878640,1716574255226,-151.0,0.0002877,2]
[327878641,1716574255236,-301.66816502,0.00028784,4]
[327878642,1716574255245,-2058.03552149,0.00028787,2]
[327878643,1716574255255,-151.0,0.00028808,2]
[327878644,1716574255266,-151.0,0.00028808,2]
[327878645,1716574255275,-151.0,0.00028808,2]
[327878646,1716574255284,-581.375839,0.00028808,2]
[327878647,1716574255293,-581.375839,0.00028808,2]
[327878648,1716574255303,-151.0,0.00028808,2]
[327878649,1716574255312,-151.0,0.00028808,2]
[327878650,1716574255321,-196.850819,0.00028808,2]
[327878651,1716574255330,-151.0,0.00028808,2]
[327878652,1716574255339,-2058.03552149,0.00028879,2]
[327878653,1716574255349,-2058.03552149,0.00028898,2]
[327878654,1716574255358,-492.62981358,0.000289,2]
[327878655,1716574255368,-152.65713131,0.00028939,2]
[327878656,1716574255377,-600.0,0.00028984,2]
[327878657,1716574255386,-285.29263438,0.00029,2]
[327878658,1716574255395,-169.73803509,0.00029,30]
[327878659,1716574255404,-5442.69511,0.00029,2]
[327878660,1716574255414,-414.99243713,0.00029,2]
[327878661,1716574255423,-151.0,0.00029,2]
[327878662,1716574255432,-704.939248,0.00029,2]
[327878663,1716574255441,-704.939248,0.00029,2]
[327878664,1716574255451,-2058.03552149,0.00029029,2]
[327878665,1716574255461,-1824.81,0.00029041,2]
[327878666,1716574255471,-438.64251966,0.00029041,18]
[327878667,1716574255480,-500.0,0.00029041,18]
[327878668,1716574255489,-691.71,0.00029041,18]
[327878669,1716574255498,-500.0,0.00029041,18]
[327878670,1716574255507,-587.64,0.00029041,18]
[327878671,1716574255518,-500.0,0.00029041,18]
[327878672,1716574255528,-500.0,0.00029041,18]
[327878673,1716574255537,-634.77,0.00029041,18]
[327878674,1716574255546,-151.0,0.00029041,2]
[327878675,1716574255555,-151.0,0.00029041,2]
[327878676,1716574255564,-151.0,0.00029041,2]
[327878677,1716574255573,-151.0,0.00029041,2]
[327878678,1716574255583,-151.0,0.00029041,2]
[327878679,1716574255592,-750.793495,0.00029041,2]
[327878680,1716574255600,-750.793495,0.00029041,2]
[327878681,1716574255610,-500.0,0.00029041,18]
[327878682,1716574255619,-661.81,0.00029041,18]
[327878683,1716574255628,-383.535937,0.00029041,2]
[327878684,1716574255638,-383.535937,0.00029041,2]
[327878685,1716574255647,-500.0,0.00029041,18]
[327878686,1716574255656,-151.0,0.00029041,2]
[327878687,1716574255665,-151.0,0.00029041,2]
[327878688,1716574255675,-151.0,0.00029041,2]
[327878689,1716574255683,-500.0,0.00029041,18]
[327878690,1716574255692,-151.0,0.00029041,2]
[327878691,1716574255701,-151.0,0.00029041,2]
[327878692,1716574255711,-2846.28,0.00029041,18]
[327878693,1716574255720,-3577.07,0.00029041,18]
[327878694,1716574255729,-808.03,0.00029041,18]
[327878695,1716574255738,-280.782576,0.00029041,2]
[327878696,1716574255747,-280.782576,0.00029041,2]
[327878697,1716574255757,-500.0,0.00029041,18]
[327878698,1716574255767,-506.88,0.00029041,18]
[327878699,1716574255776,-1250.13,0.00029041,18]
[327878700,1716574255786,-553.03,0.00029041,18]
[327878701,1716574255795,-1250.38,0.00029041,18]
[327878702,1716574255805,-504.09,0.00029041,18]
[327878703,1716574255819,-500.0,0.00029041,18]
[327878704,1716574255828,-626.0,0.00029041,18]
[327878705,1716574255837,-500.0,0.00029041,18]
[327878706,1716574255846,-839.12,0.00029041,18]
[327878707,1716574255856,-4212.77,0.00029041,18]
[327878708,1716574255866,-500.0,0.00029041,18]
[327878709,1716574255875,-500.0,0.00029041,18]
[327878710,1716574255885,-613.44,0.00029041,18]
[327878711,1716574255896,-4510.73,0.00029041,18]
[327878712,1716574255907,-1401.54,0.00029041,18]
[327878713,1716574255916,-500.0,0.00029041,18]
[327878714,1716574255925,-2058.03552149,0.00029045,2]
[327878715,1716574255934,-168.78981311,0.00029047,2]
[327878716,1716574255943,-168.78981311,0.0002906,2]
[327878717,1716574255953,-153.0,0.00029102,2]
[327878718,1716574255963,-153.0,0.00029102,2]
[327878719,1716574255972,-153.0,0.00029102,2]
[327878720,1716574255981,-153.0,0.00029109,2]
[327878721,1716574255990,-153.0,0.00029109,2]
[327878722,1716574255999,-204.6274004,0.00029109,2]
[327878723,1716574256008,-153.0,0.00029109,2]
[327878724,1716574256019,-409.2548008,0.00029109,2]
[327878725,1716574256028,-153.0,0.00029109,2]
[327878726,1716574256037,-204.6274004,0.00029109,2]
[327878727,1716574256046,-204.6274004,0.00029109,2]
[327878728,1716574256055,-204.6274004,0.00029109,2]
[327878729,1716574256064,-204.6274004,0.00029109,2]
[327878730,1716574256074,-204.6274004,0.00029109,2]
[327878731,1716574256083,-204.6274004,0.00029109,2]
[327878732,1716574256093,-204.6274004,0.00029109,2]
[327878733,1716574256102,-204.6274004,0.00029109,2]
[327878734,1716574256111,-204.6274004,0.00029109,2]
[327878735,1716574256120,-409.2548008,0.00029109,2]
[327878736,1716574256129,-2058.03552149,0.00029133,2]
[327878737,1716574256138,-168.78981311,0.00029172,2]
[327878738,1716574256147,-168.78981311,0.00029176,2]
[327878739,1716574256156,-603.33633004,0.00029268,7]
[327878740,1716574256166,-600.0,0.00029282,2]
[327878741,1716574256175,-2058.03552149,0.00029288,2]
[327878742,1716574256185,-1824.81,0.00029315,2]
[327878743,1716574256194,-500.0,0.00029315,19]
[327878744,1716574256203,-691.71,0.00029315,19]
[327878745,1716574256212,-500.0,0.00029315,19]
[327878746,1716574256221,-587.64,0.00029315,19]
[327878747,1716574256231,-169.39866783,0.00029315,19]
[327878748,1716574256240,-515.57589589,0.00029315,19]
[327878749,1716574256249,-634.77,0.00029315,19]
[327878750,1716574256259,-500.0,0.00029315,19]
[327878751,1716574256269,-661.81,0.00029315,19]
[327878752,1716574256278,-500.0,0.00029315,19]
[327878753,1716574256287,-500.0,0.00029315,19]
[327878754,1716574256298,-2846.28,0.00029315,19]
[327878755,1716574256309,-3577.07,0.00029315,19]
[327878756,1716574256318,-808.03,0.00029315,19]
[327878757,1716574256327,-472.72543493,0.00029315,19]
[327878758,1716574256337,-506.88,0.00029315,19]
[327878759,1716574256346,-1250.13,0.00029315,19]
[327878760,1716574256356,-553.03,0.00029315,19]
[327878761,1716574256365,-1250.38,0.00029315,19]
[327878762,1716574256374,-504.09,0.00029315,19]
[327878763,1716574256383,-500.0,0.00029315,19]
[327878764,1716574256392,-626.0,0.00029315,19]
[327878765,1716574256402,-500.0,0.00029315,19]
[327878766,1716574256411,-839.12,0.00029315,19]
[327878767,1716574256526,-4212.77,0.00029315,19]
[327878768,1716574256537,-500.0,0.00029315,19]
[327878769,1716574256546,-500.0,0.00029315,19]
[327878770,1716574256556,-613.44,0.00029315,19]
[327878771,1716574256565,-4510.73,0.00029315,19]
[327878772,1716574256574,-1401.54,0.00029315,19]
[327878773,1716574256583,-500.0,0.00029315,19]
[327878774,1716574256592,-2058.03552149,0.00029367,2]
[327878775,1716574256601,-300.0,0.000294,2]
[327878776,1716574256611,-500.0,0.00029436,2]
[327878777,1716574256619,-168.78981311,0.00029442,2]
[327878778,1716574256628,-168.78981311,0.00029515,2]
[327878779,1716574256638,-165.09678267,0.00029577,2]
[327878780,1716574256647,-808.77517036,0.00029581,2]
[327878781,1716574256656,-1824.81,0.00029589,2]
[327878782,1716574256665,-500.0,0.00029589,20]
[327878783,1716574256674,-691.71,0.00029589,20]
[327878784,1716574256683,-500.0,0.00029589,20]
[327878785,1716574256692,-587.64,0.00029589,20]
[327878786,1716574256701,-634.77,0.00029589,20]
[327878787,1716574256711,-500.0,0.00029589,20]
[327878788,1716574256720,-661.81,0.00029589,20]
[327878789,1716574256729,-500.0,0.00029589,20]
[327878790,1716574256741,-500.0,0.00029589,20]
[327878791,1716574256752,-2846.28,0.00029589,20]
[327878792,1716574256763,-3577.07,0.00029589,20]
[327878793,1716574256772,-808.03,0.00029589,20]
[327878794,1716574256781,-506.88,0.00029589,20]
[327878795,1716574256791,-1250.13,0.00029589,20]
[327878796,1716574256804,-553.03,0.00029589,20]
[327878797,1716574256819,-1250.38,0.00029589,20]
[327878798,1716574256828,-504.09,0.00029589,20]
[327878799,1716574256837,-500.0,0.00029589,20]
[327878800,1716574256847,-626.0,0.00029589,20]
[327878801,1716574256856,-500.0,0.00029589,20]
[327878802,1716574256866,-839.12,0.00029589,20]
[327878803,1716574256878,-4212.77,0.00029589,20]
[327878804,1716574256891,-500.0,0.00029589,20]
[327878805,1716574256902,-500.0,0.00029589,20]
[327878806,1716574256913,-613.44,0.00029589,20]
[327878807,1716574256924,-4510.73,0.00029589,20]
[327878808,1716574256934,-1401.54,0.00029589,20]
[327878809,1716574256943,-361.42844918,0.00029589,20]
[327878810,1716574256952,-168.78981311,0.00029592,2]
[327878811,1716574256962,-192.61788353,0.00029603,2]
[327878812,1716574256972,-166.81042853,0.0002976,4]
[327878813,1716574256981,-1685.0,0.00029787,26]
[327878814,1716574256991,-281.0,0.000298,2]
[327878815,1716574257000,-281.0,0.000298,2]
[327878816,1716574257010,-563.0,0.000298,2]
[327878817,1716574257021,-165.09678267,0.00029832,2]
[327878818,1716574257030,-168.78981311,0.00029854,2]
[327878819,1716574257040,-1824.81,0.00029863,2]
[327878820,1716574257050,-500.0,0.00029863,21]
[327878821,1716574257059,-691.71,0.00029863,21]
[327878822,1716574257069,-489.53403563,0.00029863,21]
[327878823,1716574257078,-587.64,0.00029863,21]
[327878824,1716574257087,-634.77,0.00029863,21]
[327878825,1716574257098,-626.98116122,0.00029863,21]
[327878826,1716574257107,-661.81,0.00029863,21]
[327878827,1716574257117,-474.52438619,0.00029863,21]
[327878828,1716574257126,-500.0,0.00029863,21]
[327878829,1716574257137,-2846.28,0.00029863,21]
[327878830,1716574257147,-3577.07,0.00029863,21]
[327878831,1716574257157,-808.03,0.00029863,21]
[327878832,1716574257167,-506.88,0.00029863,21]
[327878833,1716574257176,-1250.13,0.00029863,21]
[327878834,1716574257186,-553.03,0.00029863,21]
[327878835,1716574257195,-1250.38,0.00029863,21]
[327878836,1716574257204,-504.09,0.00029863,21]
[327878837,1716574257214,-560.01949259,0.00029863,21]
[327878838,1716574257223,-626.0,0.00029863,21]
[327878839,1716574257232,-500.0,0.00029863,21]
[327878840,1716574257242,-839.12,0.00029863,21]
[327878841,1716574257252,-4212.77,0.00029863,21]
[327878842,1716574257261,-500.0,0.00029863,21]
[327878843,1716574257272,-300.14815618,0.00029863,21]
[327878844,1716574257282,-613.44,0.00029863,21]
[327878845,1716574257291,-4510.73,0.00029863,21]
[327878846,1716574257300,-1401.54,0.00029863,21]
[327878847,1716574257309,-151.0,0.00029863,2]
[327878848,1716574257318,-24792.16255321,0.0002988,11]
[327878849,1716574257327,-71187.50404944,0.0002988,7]
[327878850,1716574257337,-209608.72565657,0.0002988,2]
[327878851,1716574257346,-151.0,0.0002988,2]
[327878852,1716574257355,-151.0,0.0002988,2]
[327878853,1716574257364,-195.854365,0.0002988,2]
[327878854,1716574257373,-195.854365,0.0002988,2]
[327878855,1716574257382,-1115.353612,0.0002988,2]
[327878856,1716574257391,-195.854365,0.0002988,2]
[327878857,1716574257399,-1115.353612,0.0002988,2]
[327878858,1716574257408,-195.854365,0.0002988,2]
[327878859,1716574257418,-1115.353612,0.0002988,2]
[327878860,1716574257427,-1115.353612,0.0002988,2]
[327878861,1716574257436,-188.909754,0.0002988,2]
[327878862,1716574257445,-151.0,0.0002988,2]
[327878863,1716574257455,-151.0,0.0002988,2]
[327878864,1716574257464,-418.033386,0.0002988,2]
[327878865,1716574257473,-418.033386,0.0002988,2]
[327878866,1716574257482,-418.033386,0.0002988,2]
[327878867,1716574257492,-418.033386,0.0002988,2]
[327878868,1716574257501,-151.0,0.0002988,2]
[327878869,1716574257510,-151.0,0.0002988,2]
[327878870,1716574257521,-151.0,0.0002988,2]
[327878871,1716574257530,-164.791064,0.0002988,2]
[327878872,1716574257540,-151.0,0.0002988,2]
[327878873,1716574257549,-151.0,0.0002988,2]
[327878874,1716574257560,-155.865536,0.0002988,2]
[327878875,1716574257569,-750.793495,0.0002988,2]
[327878876,1716574257580,-750.793495,0.0002988,2]
[327878877,1716574257590,-750.793495,0.0002988,2]
[327878878,1716574257601,-750.793495,0.0002988,2]
[327878879,1716574257612,-383.535937,0.0002988,2]
[327878880,1716574257622,-383.535937,0.0002988,2]
[327878881,1716574257632,-383.535937,0.0002988,2]
[327878882,1716574257643,-383.535937,0.0002988,2]
[327878883,1716574257653,-151.0,0.0002988,2]
[327878884,1716574257663,-151.0,0.0002988,2]
[327878885,1716574257674,-151.0,0.0002988,2]
[327878886,1716574257684,-151.0,0.0002988,2]
[327878887,1716574257693,-151.0,0.0002988,2]
[327878888,1716574257703,-151.0,0.0002988,2]
[327878889,1716574257713,-151.0,0.0002988,2]
[327878890,1716574257723,-151.0,0.0002988,2]
[327878891,1716574257732,-151.0,0.0002988,2]
[327878892,1716574257742,-151.0,0.0002988,2]
[327878893,1716574257752,-151.0,0.0002988,2]
[327878894,1716574257761,-151.0,0.0002988,2]
[327878895,1716574257772,-151.0,0.0002988,2]
[327878896,1716574257782,-280.782576,0.0002988,2]
[327878897,1716574257792,-280.782576,0.0002988,2]
[327878898,1716574257802,-581.375839,0.0002988,2]
[327878899,1716574257815,-581.375839,0.0002988,2]
[327878900,1716574257824,-280.782576,0.0002988,2]
[327878901,1716574257833,-280.782576,0.0002988,2]
[327878902,1716574257843,-581.375839,0.0002988,2]
[327878903,1716574257854,-581.375839,0.0002988,2]
[327878904,1716574257863,-151.0,0.0002988,2]
[327878905,1716574257872,-151.0,0.0002988,2]
[327878906,1716574257881,-151.0,0.0002988,2]
[327878907,1716574257893,-151.0,0.0002988,2]
[327878908,1716574257902,-151.0,0.0002988,2]
[327878909,1716574257911,-151.0,0.0002988,2]
[327878910,1716574257920,-338.343219,0.0002988,2]
[327878911,1716574257929,-338.343219,0.0002988,2]
[327878912,1716574257940,-338.343219,0.0002988,2]
[327878913,1716574257950,-338.343219,0.0002988,2]
[327878914,1716574257960,-198.757831,0.0002988,2]
[327878915,1716574257970,-198.757831,0.0002988,2]
[327878916,1716574257980,-198.757831,0.0002988,2]
[327878917,1716574257990,-198.757831,0.0002988,2]
[327878918,1716574257999,-704.939248,0.0002988,2]
[327878919,1716574258009,-704.939248,0.0002988,2]
[327878920,1716574258019,-704.939248,0.0002988,2]
[327878921,1716574258028,-704.939248,0.0002988,2]
[327878922,1716574258038,-151.0,0.0002988,2]